[Event "Blixt-SM 2025"]
[Site "Norrköping, Sweden"]
[Date "2025.09.26"]
[Round "9.4"]
[White "Berovski, Krum"]
[Black "Lindh, Fredrik"]
[Result "1/2-1/2"]
[TimeControl "3 min + 2 sec/move"]
[BlackTitle "FM"]
[WhiteElo "2344"]
[BlackElo "2249"]

1. d4 {[%clk 00:03:02]} {[%emt 00:00:02]} d5 {[%clk 00:03:02]} {[%emt
00:00:03]} 2. c4 {[%clk 00:03:03]} {[%emt 00:00:01]} c6 {[%clk 00:03:03]} 3.
Nc3 {[%clk 00:03:02]} {[%emt 00:00:03]} Nf6 {[%clk 00:03:04]} 4. cxd5 {[%clk
00:03:03]} cxd5 {[%clk 00:03:05]} 5. Bf4 {[%clk 00:03:04]} Nc6 {[%clk
00:03:06]} {[%emt 00:00:01]} 6. e3 {[%clk 00:03:05]} a6 {[%clk 00:03:05]}
{[%emt 00:00:04]} 7. Rc1 {[%clk 00:03:03]} {[%emt 00:00:04]} Bg4 {[%clk
00:03:00]} {[%emt 00:00:08]} 8. Be2 {[%clk 00:03:04]} Bxe2 {[%clk 00:02:57]}
{[%emt 00:00:05]} 9. Ngxe2 {[%clk 00:03:04]} {[%emt 00:00:01]} e6 {[%clk
00:02:56]} {[%emt 00:00:03]} 10. O-O {[%clk 00:03:00]} {[%emt 00:00:06]} Be7
{[%clk 00:02:57]} {[%emt 00:00:02]} 11. h3 {[%clk 00:02:56]} {[%emt 00:00:05]}
O-O {[%clk 00:02:57]} {[%emt 00:00:02]} 12. Na4 {[%clk 00:02:52]} {[%emt
00:00:06]} Nd7 {[%clk 00:02:54]} {[%emt 00:00:05]} 13. Qb3 {[%clk 00:02:34]}
{[%emt 00:00:21]} Na5 {[%clk 00:02:22]} {[%emt 00:00:34]} 14. Qd3 {[%clk
00:02:28]} {[%emt 00:00:08]} Rc8 {[%clk 00:01:41]} {[%emt 00:00:44]} 15. Rxc8
{[%clk 00:02:24]} {[%emt 00:00:05]} Qxc8 {[%clk 00:01:42]} 16. Rc1 {[%clk
00:02:23]} {[%emt 00:00:03]} Nc6 {[%clk 00:01:43]} {[%emt 00:00:01]} 17. a3
{[%clk 00:02:13]} {[%emt 00:00:13]} b5 {[%clk 00:01:17]} {[%emt 00:00:27]} 18.
Qc2 {[%clk 00:01:26]} {[%emt 00:00:49]} Na7 {[%clk 00:01:18]} 19. Nc5 {[%clk
00:01:25]} {[%emt 00:00:03]} Nxc5 {[%clk 00:01:10]} {[%emt 00:00:10]} 20. dxc5
{[%clk 00:01:26]} {[%emt 00:00:01]} Nc6 {[%emt 00:00:04]} 21. Nd4 {[%clk
00:01:13]} {[%emt 00:00:12]} f6 {[%clk 00:00:57]} {[%emt 00:00:16]} 22. Bd6
{[%clk 00:00:45]} {[%emt 00:00:31]} Re8 {[%clk 00:00:31]} {[%emt 00:00:27]} 23.
Bxe7 {[%clk 00:00:32]} {[%emt 00:00:15]} Rxe7 {[%clk 00:00:31]} {[%emt
00:00:02]} 24. b4 {[%clk 00:00:28]} {[%emt 00:00:07]} Nxd4 {[%clk 00:00:25]}
{[%emt 00:00:07]} 25. exd4 {[%clk 00:00:29]} Qc6 {[%clk 00:00:26]} {[%emt
00:00:02]} 26. f4 {[%clk 00:00:20]} {[%emt 00:00:10]} g6 {[%clk 00:00:24]}
{[%emt 00:00:04]} 27. Re1 {[%clk 00:00:16]} {[%emt 00:00:05]} Kf7 {[%clk
00:00:23]} {[%emt 00:00:03]} 28. g4 {[%clk 00:00:16]} {[%emt 00:00:03]} a5
{[%clk 00:00:23]} {[%emt 00:00:03]} 29. f5 {[%clk 00:00:15]} {[%emt 00:00:02]}
axb4 {[%clk 00:00:23]} {[%emt 00:00:02]} 30. axb4 {[%clk 00:00:16]} exf5 {[%clk
00:00:16]} {[%emt 00:00:08]} 31. Rxe7+ {[%clk 00:00:17]} {[%emt 00:00:02]} Kxe7
32. gxf5 Kf7 {[%clk 00:00:08]} {[%emt 00:00:10]} 33. Qa2 {[%clk 00:00:19]}
{[%emt 00:00:01]} Qd7 {[%clk 00:00:05]} {[%emt 00:00:06]} 34. fxg6+ {[%clk
00:00:19]} {[%emt 00:00:02]} hxg6 {[%clk 00:00:05]} 35. Kh2 {[%clk 00:00:21]}
g5 {[%clk 00:00:05]} {[%emt 00:00:02]} 36. Qa6 {[%clk 00:00:22]} Qf5 {[%clk
00:00:04]} {[%emt 00:00:03]} 37. Qxb5 {[%clk 00:00:21]} {[%emt 00:00:02]} Qf2+
{[%clk 00:00:04]} {[%emt 00:00:02]} 38. Kh1 {[%clk 00:00:22]} Qf3+ {[%clk
00:00:04]} {[%emt 00:00:03]} 39. Kg1 {[%clk 00:00:24]} Qg3+ {[%clk 00:00:05]}
40. Kf1 {[%clk 00:00:25]} Qxh3+ {[%clk 00:00:06]} 41. Ke1 {[%clk 00:00:26]}
Qe3+ {[%clk 00:00:07]} {[%emt 00:00:01]} 42. Qe2 {[%clk 00:00:26]} {[%emt
00:00:02]} Qc3+ {[%clk 00:00:07]} {[%emt 00:00:02]} 43. Qd2 {[%clk 00:00:27]}
{[%emt 00:00:01]} Qg3+ {[%clk 00:00:07]} {[%emt 00:00:01]} 44. Kd1 {[%clk
00:00:28]} Qb3+ {[%clk 00:00:08]} {[%emt 00:00:01]} 45. Kc1 {[%clk 00:00:29]}
{[%emt 00:00:02]} Qa3+ {[%clk 00:00:09]} {[%emt 00:00:01]} 46. Qb2 {[%clk
00:00:30]} {[%emt 00:00:01]} Qe3+ {[%clk 00:00:10]} 47. Kb1 {[%clk 00:00:31]}
Qd3+ {[%clk 00:00:11]} 48. Ka2 {[%clk 00:00:32]} {[%emt 00:00:01]} Qc4+ {[%clk
00:00:12]} {[%emt 00:00:02]} 49. Ka3 {[%clk 00:00:32]} {[%emt 00:00:02]} Qa6+
{[%clk 00:00:12]} {[%emt 00:00:01]} 50. Kb3 {[%clk 00:00:33]} Qc4+ {[%clk
00:00:13]} 51. Ka4 {[%clk 00:00:34]} Qa6+ {[%clk 00:00:14]} {[%emt 00:00:01]}
52. Kb3 {[%clk 00:00:36]} Qc4+ {[%clk 00:00:15]} 53. Ka3 {[%clk 00:00:37]}
1/2-1/2

[Event "Blixt-SM 2025"]
[Site "Norrköping, Sweden"]
[Date "2025.09.26"]
[Round "10.10"]
[White "Sjoholm, Emil"]
[Black "Halvarsson, Peter"]
[Result "1-0"]
[TimeControl "3 min + 2 sec/move"]
[WhiteElo "2062"]
[BlackElo "1933"]

1. e4 {[%clk 00:03:02]} {[%emt 00:00:02]} c5 {[%clk 00:03:03]} {[%emt
00:00:02]} 2. Nf3 {[%clk 00:03:03]} g6 {[%clk 00:03:05]} {[%emt 00:00:01]} 3.
d4 {[%clk 00:03:03]} cxd4 {[%clk 00:03:06]} {[%emt 00:00:01]} 4. Qxd4 {[%clk
00:03:04]} {[%emt 00:00:02]} Nf6 {[%clk 00:03:07]} {[%emt 00:00:01]} 5. e5
{[%clk 00:03:05]} Nc6 {[%clk 00:03:07]} 6. Qa4 {[%clk 00:03:06]} {[%emt
00:00:02]} Nd5 {[%clk 00:03:07]} {[%emt 00:00:02]} 7. Qe4 {[%clk 00:03:07]}
{[%emt 00:00:01]} Nb6 {[%clk 00:02:55]} {[%emt 00:00:14]} 8. Nc3 {[%clk
00:03:07]} Bg7 {[%clk 00:02:54]} {[%emt 00:00:04]} 9. Bf4 {[%clk 00:03:06]}
{[%emt 00:00:03]} O-O {[%clk 00:02:46]} {[%emt 00:00:10]} 10. O-O-O {[%clk
00:03:02]} {[%emt 00:00:05]} f6 {[%clk 00:02:25]} {[%emt 00:00:24]} 11. Bg3
{[%clk 00:02:03]} {[%emt 00:01:02]} fxe5 {[%clk 00:02:14]} {[%emt 00:00:13]} 12.
Nxe5 {[%clk 00:02:04]} Nxe5 {[%clk 00:02:08]} {[%emt 00:00:08]} 13. Bxe5 {[%clk
00:02:04]} {[%emt 00:00:01]} d6 {[%clk 00:02:01]} {[%emt 00:00:08]} 14. Bxg7
Kxg7 {[%clk 00:02:02]} 15. f3 {[%clk 00:02:04]} {[%emt 00:00:02]} Bf5 {[%clk
00:02:01]} {[%emt 00:00:04]} 16. Qd4+ {[%clk 00:02:00]} {[%emt 00:00:05]} Kg8
{[%clk 00:01:52]} {[%emt 00:00:11]} 17. h4 {[%clk 00:02:01]} {[%emt 00:00:01]}
Rc8 {[%clk 00:01:27]} {[%emt 00:00:28]} 18. h5 {[%clk 00:02:02]} e5 {[%clk
00:01:28]} 19. Qxd6 {[%clk 00:01:48]} {[%emt 00:00:15]} Qxd6 {[%clk 00:01:26]}
{[%emt 00:00:04]} 20. Rxd6 {[%emt 00:00:02]} Rc5 {[%clk 00:01:07]} {[%emt
00:00:20]} 21. g4 {[%clk 00:01:49]} {[%emt 00:00:02]} Nc8 {[%clk 00:00:56]}
{[%emt 00:00:13]} 22. Rd2 {[%clk 00:01:42]} {[%emt 00:00:09]} Be6 {[%clk
00:00:55]} {[%emt 00:00:04]} 23. hxg6 {[%clk 00:01:37]} {[%emt 00:00:07]} hxg6
{[%clk 00:00:56]} 24. Ne4 {[%clk 00:01:36]} {[%emt 00:00:03]} Rc7 {[%clk
00:00:51]} {[%emt 00:00:06]} 25. Rdh2 {[%clk 00:01:24]} {[%emt 00:00:13]} Rg7
{[%clk 00:00:31]} {[%emt 00:00:22]} 26. Ng5 {[%clk 00:01:24]} {[%emt 00:00:03]}
1-0

[Event "Blixt-SM 2025"]
[Site "Norrköping, Sweden"]
[Date "2025.09.26"]
[Round "1.5"]
[White "Nilsson, Oliver"]
[Black "Religa, Marek"]
[Result "0-1"]
[TimeControl "3 min + 2 sec/move"]
[WhiteElo "2078"]
[BlackElo "2207"]

1. d4 {[%clk 00:03:01]} {[%emt 00:00:01]} g6 {[%clk 00:03:04]} {[%emt
00:00:01]} 2. c4 {[%clk 00:03:01]} {[%emt 00:00:02]} Bg7 {[%clk 00:03:05]} 3.
Nf3 {[%clk 00:03:02]} {[%emt 00:00:02]} d6 {[%clk 00:03:06]} 4. Nc3 {[%clk
00:03:02]} {[%emt 00:00:01]} Nf6 {[%clk 00:03:08]} 5. e4 {[%clk 00:03:03]}
{[%emt 00:00:02]} O-O {[%clk 00:03:08]} {[%emt 00:00:01]} 6. Be2 {[%clk
00:03:04]} e5 {[%clk 00:03:08]} {[%emt 00:00:02]} 7. O-O {[%clk 00:03:02]}
{[%emt 00:00:04]} exd4 8. Nxd4 {[%clk 00:03:02]} Re8 {[%clk 00:03:10]} 9. Kh1
{[%clk 00:03:02]} {[%emt 00:00:02]} Nxe4 {[%clk 00:03:06]} {[%emt 00:00:06]} 10.
Nxe4 {[%clk 00:03:03]} Rxe4 {[%clk 00:03:07]} {[%emt 00:00:01]} 11. Bf3 {[%clk
00:02:57]} {[%emt 00:00:08]} Rxd4 {[%clk 00:03:05]} {[%emt 00:00:04]} 12. Qe2
{[%clk 00:02:58]} Be6 {[%clk 00:01:46]} {[%emt 00:01:20]} 13. b3 {[%clk
00:02:59]} {[%emt 00:00:02]} Nc6 {[%clk 00:01:40]} {[%emt 00:00:08]} 14. Bb2
{[%clk 00:02:52]} {[%emt 00:00:09]} Rf4 {[%clk 00:01:17]} {[%emt 00:00:25]} 15.
Bxg7 {[%clk 00:02:46]} {[%emt 00:00:08]} Kxg7 {[%clk 00:01:18]} {[%emt
00:00:01]} 16. g3 {[%clk 00:02:45]} {[%emt 00:00:04]} Nd4 {[%clk 00:01:13]}
{[%emt 00:00:06]} 17. Qb2 {[%clk 00:02:41]} {[%emt 00:00:06]} Rxf3 {[%clk
00:01:14]} {[%emt 00:00:02]} 18. Qxd4+ {[%clk 00:02:41]} {[%emt 00:00:02]} Qf6
{[%clk 00:01:15]} 19. Qe4 {[%clk 00:02:41]} {[%emt 00:00:02]} Bh3 {[%clk
00:01:08]} {[%emt 00:00:08]} 20. Rfe1 {[%clk 00:02:35]} {[%emt 00:00:08]} Rxf2
{[%clk 00:01:07]} {[%emt 00:00:03]} 21. Rg1 {[%clk 00:02:34]} {[%emt 00:00:04]}
Qb2 {[%clk 00:00:53]} {[%emt 00:00:15]} 22. Raf1 {[%clk 00:02:16]} {[%emt
00:00:21]} Rxh2# {[%clk 00:00:53]} {[%emt 00:00:02]} 0-1

[ePGN "0.1;DGT LiveChess/2.2.7"]

[Event "Blixt-SM 2025"]
[Site "Norrköping, Sweden"]
[Date "2025.09.26"]
[Round "3.1"]
[White "Sjoholm, Emil"]
[Black "Seo, Jung Min"]
[Result "0-1"]
[TimeControl "3 min + 2 sec/move"]
[BlackTitle "IM"]
[WhiteElo "2062"]
[BlackElo "2480"]

1. e4 {[%clk 00:03:02]} {[%emt 00:00:01]} c6 {[%clk 00:03:04]} {[%emt
00:00:01]} 2. d4 {[%clk 00:03:03]} d5 {[%clk 00:03:05]} 3. Nc3 {[%clk
00:03:04]} dxe4 {[%clk 00:03:04]} {[%emt 00:00:02]} 4. Nxe4 {[%clk 00:03:05]}
{[%emt 00:00:02]} Nf6 {[%clk 00:03:05]} 5. Nxf6+ {[%clk 00:03:04]} {[%emt
00:00:02]} exf6 {[%clk 00:03:06]} {[%emt 00:00:01]} 6. c3 {[%clk 00:03:05]} Bd6
{[%clk 00:03:05]} {[%emt 00:00:04]} 7. Bd3 {[%clk 00:03:06]} {[%emt 00:00:01]}
Nd7 {[%clk 00:03:04]} {[%emt 00:00:03]} 8. Ne2 {[%clk 00:03:06]} {[%emt
00:00:01]} Nf8 {[%clk 00:03:04]} {[%emt 00:00:03]} 9. Qc2 {[%clk 00:03:06]}
{[%emt 00:00:02]} Be6 {[%clk 00:02:56]} {[%emt 00:00:09]} 10. Be3 {[%clk
00:02:54]} {[%emt 00:00:13]} Qc7 {[%clk 00:02:56]} {[%emt 00:00:03]} 11. h3
{[%clk 00:02:52]} {[%emt 00:00:04]} Ng6 {[%clk 00:02:56]} {[%emt 00:00:02]} 12.
g3 {[%clk 00:02:38]} {[%emt 00:00:16]} Ne7 {[%clk 00:02:55]} {[%emt 00:00:04]}
13. O-O-O {[%clk 00:02:10]} {[%emt 00:00:29]} Nd5 {[%clk 00:02:43]} {[%emt
00:00:15]} 14. Kb1 {[%clk 00:02:06]} {[%emt 00:00:06]} Nxe3 {[%clk 00:02:30]}
{[%emt 00:00:14]} 15. fxe3 {[%clk 00:02:07]} {[%emt 00:00:01]} g6 {[%clk
00:02:31]} {[%emt 00:00:02]} 16. Nf4 {[%clk 00:02:01]} {[%emt 00:00:08]} Bxf4
{[%clk 00:02:10]} {[%emt 00:00:22]} 17. gxf4 {[%clk 00:01:57]} {[%emt
00:00:06]} f5 {[%clk 00:02:11]} {[%emt 00:00:02]} 18. h4 {[%clk 00:01:54]}
{[%emt 00:00:05]} h5 {[%clk 00:02:08]} {[%emt 00:00:04]} 19. e4 {[%clk
00:01:49]} {[%emt 00:00:07]} fxe4 {[%clk 00:02:06]} {[%emt 00:00:04]} 20. Bxe4
{[%clk 00:01:50]} Qxf4 {[%clk 00:01:57]} {[%emt 00:00:11]} 21. Rdf1 {[%clk
00:01:22]} {[%emt 00:00:30]} Qd6 {[%clk 00:01:58]} {[%emt 00:00:02]} 22. Rf6
{[%clk 00:01:17]} {[%emt 00:00:07]} O-O-O {[%clk 00:01:46]} {[%emt 00:00:13]}
23. Rhf1 {[%clk 00:01:12]} {[%emt 00:00:07]} Rhe8 {[%clk 00:01:41]} {[%emt
00:00:07]} 24. Bd3 {[%clk 00:01:05]} {[%emt 00:00:09]} Qe7 {[%clk 00:01:35]}
{[%emt 00:00:08]} 25. Qa4 {[%clk 00:00:54]} {[%emt 00:00:14]} Kb8 {[%clk
00:01:35]} {[%emt 00:00:02]} 26. R6f4 {[%clk 00:00:36]} {[%emt 00:00:19]} f5
{[%clk 00:01:22]} {[%emt 00:00:15]} 27. Rg1 {[%clk 00:00:28]} {[%emt 00:00:09]}
Bf7 {[%clk 00:01:22]} {[%emt 00:00:03]} 28. Qc2 {[%clk 00:00:24]} {[%emt
00:00:07]} Qd6 {[%clk 00:01:14]} {[%emt 00:00:09]} 29. Rf2 {[%clk 00:00:21]}
{[%emt 00:00:05]} Re3 {[%clk 00:01:08]} {[%emt 00:00:08]} 30. Re2 {[%clk
00:00:17]} {[%emt 00:00:06]} Rde8 {[%clk 00:00:58]} {[%emt 00:00:13]} 31. Rxe3
{[%clk 00:00:18]} {[%emt 00:00:01]} Rxe3 {[%clk 00:00:58]} 32. Qd2 {[%clk
00:00:04]} {[%emt 00:00:17]} Re8 {[%clk 00:00:45]} {[%emt 00:00:14]} 33. Re1
{[%clk 00:00:04]} {[%emt 00:00:02]} Rxe1+ {[%clk 00:00:12]} {[%emt 00:00:35]}
34. Qxe1 {[%clk 00:00:05]} Kc8 {[%clk 00:00:12]} {[%emt 00:00:03]} 35. b3
{[%clk 00:00:05]} {[%emt 00:00:02]} Kd7 {[%clk 00:00:11]} {[%emt 00:00:04]} 36.
Kc2 {[%clk 00:00:07]} Qh2+ {[%clk 00:00:09]} {[%emt 00:00:03]} 37. Be2 {[%clk
00:00:06]} {[%emt 00:00:04]} Bd5 {[%clk 00:00:08]} {[%emt 00:00:03]} 38. Kd1
{[%clk 00:00:04]} {[%emt 00:00:04]} Qf4 {[%emt 00:00:05]} 39. Qd2 {[%emt
00:00:01]} 0-1

[Event "Blixt-SM 2025"]
[Site "Norrköping, Sweden"]
[Date "2025.09.26"]
[Round "4.7"]
[White "Carlsson, Ludvig"]
[Black "Angskog, Kent"]
[Result "1-0"]
[TimeControl "3 min + 2 sec/move"]
[WhiteTitle "IM"]
[WhiteElo "2389"]
[BlackElo "2118"]

1. e4 {[%clk 00:03:02]} {[%emt 00:00:01]} g6 {[%clk 00:03:03]} {[%emt
00:00:02]} 2. d4 {[%clk 00:03:02]} {[%emt 00:00:02]} Bg7 {[%clk 00:03:04]} 3.
Nf3 {[%clk 00:03:02]} {[%emt 00:00:03]} c5 {[%clk 00:03:05]} {[%emt 00:00:02]}
4. d5 {[%clk 00:02:58]} {[%emt 00:00:07]} d6 {[%clk 00:03:06]} 5. Nc3 {[%clk
00:02:57]} {[%emt 00:00:03]} Nf6 {[%clk 00:03:04]} {[%emt 00:00:04]} 6. Bb5+
{[%clk 00:02:57]} {[%emt 00:00:02]} Bd7 {[%clk 00:02:52]} {[%emt 00:00:15]} 7.
a4 {[%clk 00:02:57]} {[%emt 00:00:01]} O-O {[%clk 00:02:50]} {[%emt 00:00:04]}
8. h3 {[%clk 00:02:55]} {[%emt 00:00:04]} a6 {[%clk 00:02:40]} {[%emt
00:00:12]} 9. Bc4 {[%clk 00:02:54]} {[%emt 00:00:04]} e5 {[%clk 00:02:19]}
{[%emt 00:00:23]} 10. g4 {[%clk 00:02:45]} {[%emt 00:00:10]} Ne8 {[%clk
00:02:08]} {[%emt 00:00:13]} 11. Rg1 {[%clk 00:02:44]} {[%emt 00:00:03]} Nc7
{[%clk 00:02:03]} {[%emt 00:00:06]} 12. Qe2 {[%clk 00:02:32]} {[%emt 00:00:14]}
Qe8 {[%clk 00:01:59]} {[%emt 00:00:07]} 13. h4 {[%clk 00:02:27]} {[%emt
00:00:07]} Kh8 {[%clk 00:01:42]} {[%emt 00:00:19]} 14. h5 {[%clk 00:02:26]}
{[%emt 00:00:03]} b5 {[%clk 00:01:33]} {[%emt 00:00:11]} 15. axb5 {[%clk
00:02:23]} {[%emt 00:00:06]} axb5 {[%clk 00:01:33]} {[%emt 00:00:02]} 16. Rxa8
{[%clk 00:02:22]} {[%emt 00:00:02]} bxc4 {[%clk 00:01:22]} {[%emt 00:00:13]} 17.
Ra3 {[%clk 00:02:16]} {[%emt 00:00:08]} Nb5 {[%clk 00:01:06]} {[%emt 00:00:18]}
18. Nxb5 {[%clk 00:02:13]} {[%emt 00:00:05]} Bxb5 {[%clk 00:01:06]} {[%emt
00:00:02]} 19. hxg6 {[%clk 00:02:10]} {[%emt 00:00:05]} c3 {[%clk 00:00:44]}
{[%emt 00:00:24]} 20. Qe3 {[%clk 00:02:00]} {[%emt 00:00:12]} cxb2 {[%clk
00:00:38]} {[%emt 00:00:09]} 21. Bxb2 {[%clk 00:02:00]} {[%emt 00:00:02]} fxg6
{[%clk 00:00:17]} {[%emt 00:00:23]} 22. Ng5 {[%clk 00:02:00]} {[%emt 00:00:02]}
Qe7 {[%clk 00:00:10]} {[%emt 00:00:09]} 23. Rh1 {[%clk 00:01:56]} {[%emt
00:00:06]} h6 {[%clk 00:00:10]} {[%emt 00:00:03]} 24. Ne6 {[%clk 00:01:31]}
{[%emt 00:00:26]} Rf4 {[%clk 00:00:07]} {[%emt 00:00:05]} 25. Ra8 {[%clk
00:01:26]} {[%emt 00:00:07]} Qb7 {[%clk 00:00:03]} {[%emt 00:00:06]} 26. Rxb8+
{[%clk 00:00:44]} {[%emt 00:00:44]} Qxb8 {[%clk 00:00:04]} 27. Nxg7 {[%clk
00:00:43]} {[%emt 00:00:02]} Kxg7 {[%emt 00:00:05]} 28. Qxf4 {[%emt 00:00:01]}
1-0

[Event "Blixt-SM 2025"]
[Site "Norrköping, Sweden"]
[Date "2025.09.26"]
[Round "6.3"]
[White "Johnson, Daniel"]
[Black "Karlsson, Stefan 2005"]
[Result "1-0"]
[TimeControl "3 min + 2 sec/move"]
[WhiteElo "2177"]
[BlackElo "2112"]

1. d4 {[%clk 00:03:02]} {[%emt 00:00:01]} Nf6 {[%clk 00:03:01]} {[%emt
00:00:04]} 2. c4 {[%clk 00:03:02]} {[%emt 00:00:01]} g6 {[%emt 00:00:03]} 3. f3
{[%clk 00:03:01]} {[%emt 00:00:02]} Bg7 {[%clk 00:03:02]} {[%emt 00:00:01]} 4.
e4 {[%clk 00:03:01]} {[%emt 00:00:02]} d6 {[%clk 00:03:03]} {[%emt 00:00:01]} 5.
Nc3 {[%clk 00:03:01]} {[%emt 00:00:02]} e5 {[%clk 00:02:45]} {[%emt 00:00:20]}
6. dxe5 {[%clk 00:02:57]} {[%emt 00:00:06]} dxe5 {[%clk 00:02:46]} 7. Qxd8+
Kxd8 {[%clk 00:02:46]} 8. Bg5 {[%clk 00:02:16]} {[%emt 00:00:44]} c6 {[%clk
00:02:47]} {[%emt 00:00:01]} 9. O-O-O+ {[%clk 00:01:57]} {[%emt 00:00:21]} Kc7
{[%clk 00:02:49]} 10. h4 {[%clk 00:01:57]} {[%emt 00:00:02]} Be6 {[%clk
00:02:09]} {[%emt 00:00:41]} 11. Nh3 {[%clk 00:01:52]} {[%emt 00:00:07]} Na6
{[%clk 00:01:48]} {[%emt 00:00:23]} 12. Be3 {[%clk 00:01:47]} {[%emt 00:00:07]}
h6 {[%clk 00:01:03]} {[%emt 00:00:47]} 13. g4 {[%clk 00:01:31]} {[%emt
00:00:18]} Nd7 {[%clk 00:00:45]} {[%emt 00:00:20]} 14. Nf2 {[%clk 00:01:25]}
{[%emt 00:00:08]} f5 {[%clk 00:00:37]} {[%emt 00:00:09]} 15. gxf5 {[%clk
00:01:25]} {[%emt 00:00:03]} gxf5 {[%clk 00:00:38]} 16. Bh3 {[%clk 00:01:26]}
Raf8 {[%clk 00:00:22]} {[%emt 00:00:17]} 17. Rhg1 {[%clk 00:01:12]} {[%emt
00:00:16]} Rh7 {[%clk 00:00:23]} {[%emt 00:00:01]} 18. Rg6 {[%clk 00:01:12]}
{[%emt 00:00:02]} Rf6 {[%clk 00:00:13]} {[%emt 00:00:13]} 19. Rxf6 {[%clk
00:01:10]} {[%emt 00:00:04]} Bxf6 {[%clk 00:00:10]} {[%emt 00:00:05]} 20. Bxf5
{[%clk 00:01:06]} {[%emt 00:00:06]} Bxf5 {[%clk 00:00:11]} 21. exf5 {[%clk
00:01:07]} {[%emt 00:00:02]} Bxh4 {[%clk 00:00:09]} {[%emt 00:00:03]} 22. Nfe4
{[%clk 00:01:08]} Nf6 {[%clk 00:00:07]} {[%emt 00:00:05]} 23. Rh1 {[%clk
00:01:05]} {[%emt 00:00:05]} Nxe4 {[%clk 00:00:06]} {[%emt 00:00:02]} 24. Nxe4
{[%clk 00:01:04]} {[%emt 00:00:02]} Be7 {[%clk 00:00:04]} {[%emt 00:00:04]} 25.
f6 {[%clk 00:01:01]} {[%emt 00:00:05]} Bf8 {[%clk 00:00:04]} {[%emt 00:00:02]}
26. Ng5 {[%clk 00:01:00]} {[%emt 00:00:03]} Rh8 {[%clk 00:00:03]} {[%emt
00:00:02]} 27. Nf7 {[%clk 00:00:54]} {[%emt 00:00:09]} Rg8 {[%clk 00:00:04]}
{[%emt 00:00:01]} 28. Nxe5 {[%clk 00:00:51]} {[%emt 00:00:05]} Nb4 {[%clk
00:00:04]} {[%emt 00:00:02]} 29. a3 {[%clk 00:00:50]} {[%emt 00:00:04]} Na6
{[%clk 00:00:03]} {[%emt 00:00:02]} 30. f7 {[%clk 00:00:45]} {[%emt 00:00:07]}
Rg2 {[%clk 00:00:04]} {[%emt 00:00:01]} 31. Bxh6 {[%clk 00:00:42]} {[%emt
00:00:06]} Bxh6+ {[%clk 00:00:03]} {[%emt 00:00:03]} 32. Rxh6 {[%clk 00:00:43]}
Nc5 {[%clk 00:00:03]} {[%emt 00:00:02]} 33. f8=Q {[%clk 00:00:35]} {[%emt
00:00:09]} Nb3+ {[%clk 00:00:03]} {[%emt 00:00:02]} 34. Kd1 {[%clk 00:00:33]}
{[%emt 00:00:03]} Rd2+ {[%clk 00:00:03]} {[%emt 00:00:04]} 35. Ke1 {[%clk
00:00:34]} 1-0